[Event "Titled Tuesday Blitz March 15 Early 2022"]
[White "Bogumil, Tatiana"]
[Black "Bettalli, Francesco"]
[WhiteFideId "4110579"]
[BlackFideId "2816453"]
[WhiteElo "1761"]
[BlackElo "2216"]
[Result "0-1"]
[Round "02"]
[TimeControl "180+1"]
[Date "2022.03.15"]
[WhiteClock "0:00:08"]
[BlackClock "0:01:24"]

1. Nf3 {[%clk 0:02:40]}  c5 {[%clk 0:02:59]} 2. c4 {[%clk 0:02:36]}  g6 {[%clk 0:02:59]} 3. d4 {[%clk 0:02:35]}  cxd4 {[%clk 0:03:00]} 4. Nxd4 {[%clk 0:02:35]}  Nc6 {[%clk 0:02:52]} 5. Nc3 {[%clk 0:02:34]}  Nf6 {[%clk 0:02:31]} 6. e4 {[%clk 0:02:27]}  d6 {[%clk 0:02:29]} 7. Be2 {[%clk 0:02:26]}  Nxd4 {[%clk 0:02:30]} 8. Qxd4 {[%clk 0:02:25]}  Bg7 {[%clk 0:02:30]} 9. O-O {[%clk 0:02:20]}  O-O {[%clk 0:02:30]} 10. Qd1 {[%clk 0:02:19]}  a5 {[%clk 0:02:29]} 11. Bg5 {[%clk 0:02:16]}  a4 {[%clk 0:02:29]} 12. Qd2 {[%clk 0:02:15]}  Qa5 {[%clk 0:02:26]} 13. Bh6 {[%clk 0:02:03]}  Bxh6 {[%clk 0:02:22]} 14. Qxh6 {[%clk 0:02:03]}  a3 {[%clk 0:02:22]} 15. Qd2 {[%clk 0:01:50]}  axb2 {[%clk 0:02:22]} 16. Qxb2 {[%clk 0:01:49]}  Be6 {[%clk 0:02:23]} 17. Nd5 {[%clk 0:01:46]}  Bxd5 {[%clk 0:02:22]} 18. exd5 {[%clk 0:01:43]}  b6 {[%clk 0:02:22]} 19. a4 {[%clk 0:01:41]}  Nd7 {[%clk 0:02:21]} 20. Rfb1 {[%clk 0:01:30]}  Rfb8 {[%clk 0:02:20]} 21. h4 {[%clk 0:01:28]}  Nc5 {[%clk 0:02:16]} 22. h5 {[%clk 0:01:28]}  Nxa4 {[%clk 0:02:04]} 23. Qd4 {[%clk 0:01:07]}  Qc3 {[%clk 0:02:01]} 24. Rd1 {[%clk 0:00:56]}  Qxd4 {[%clk 0:02:00]} 25. Rxd4 {[%clk 0:00:56]}  Nc3 {[%clk 0:02:01]} 26. Re1 {[%clk 0:00:53]}  Ra1 {[%clk 0:01:56]} 27. Kf1 {[%clk 0:00:39]}  Rba8 {[%clk 0:01:50]} 28. Bd3 {[%clk 0:00:31]}  Rxe1+ {[%clk 0:01:45]} 29. Kxe1 {[%clk 0:00:31]}  Ra2 {[%clk 0:01:46]} 30. hxg6 {[%clk 0:00:29]}  hxg6 {[%clk 0:01:45]} 31. Rf4 {[%clk 0:00:20]}  Kg7 {[%clk 0:01:42]} 32. g4 {[%clk 0:00:19]}  Na4 {[%clk 0:01:38]} 33. f3 {[%clk 0:00:14]}  Nc5 {[%clk 0:01:34]} 34. Be2 {[%clk 0:00:14]}  g5 {[%clk 0:01:31]} 35. Rd4 {[%clk 0:00:13]}  Kf6 {[%clk 0:01:29]} 36. Rd1 {[%clk 0:00:12]}  Ke5 {[%clk 0:01:28]} 37. Rb1 {[%clk 0:00:12]}  Na4 {[%clk 0:01:26]} 38. Rb4 {[%clk 0:00:08]}  Kd4 {[%clk 0:01:24]} 0-1


[Site "https://www.chess.com"]

[Event "Titled Tuesday Blitz March 15 Early 2022"]
[White "Bok, Benjamin"]
[Black "Skliarov, Viktor"]
[WhiteFideId "1017063"]
[BlackFideId "14106736"]
[WhiteElo "2658"]
[BlackElo "2229"]
[Result "1-0"]
[Round "02"]
[TimeControl "180+1"]
[Date "2022.03.15"]
[WhiteClock "0:00:11"]
[BlackClock "0:00:07"]

1. d4 {[%clk 0:02:51]}  Nf6 {[%clk 0:03:00]} 2. c4 {[%clk 0:02:51]}  e6 {[%clk 0:03:00]} 3. Nc3 {[%clk 0:02:50]}  Bb4 {[%clk 0:03:00]} 4. Qc2 {[%clk 0:02:51]}  c5 {[%clk 0:03:00]} 5. dxc5 {[%clk 0:02:50]}  Na6 {[%clk 0:03:01]} 6. a3 {[%clk 0:02:50]}  Bxc3+ {[%clk 0:03:01]} 7. Qxc3 {[%clk 0:02:51]}  Nxc5 {[%clk 0:03:02]} 8. b4 {[%clk 0:02:52]}  Na4 {[%clk 0:03:02]} 9. Qc2 {[%clk 0:02:46]}  Nb6 {[%clk 0:03:02]} 10. e3 {[%clk 0:02:33]}  O-O {[%clk 0:02:58]} 11. Bb2 {[%clk 0:02:33]}  d5 {[%clk 0:02:53]} 12. c5 {[%clk 0:02:31]}  Nbd7 {[%clk 0:02:51]} 13. Nf3 {[%clk 0:02:28]}  a5 {[%clk 0:02:43]} 14. Bd3 {[%clk 0:02:24]}  axb4 {[%clk 0:02:37]} 15. axb4 {[%clk 0:02:25]}  Rxa1+ {[%clk 0:02:37]} 16. Bxa1 {[%clk 0:02:26]}  Qc7 {[%clk 0:02:37]} 17. O-O {[%clk 0:02:22]}  e5 {[%clk 0:02:32]} 18. Bf5 {[%clk 0:02:20]}  Re8 {[%clk 0:02:23]} 19. Rd1 {[%clk 0:02:18]}  g6 {[%clk 0:01:56]} 20. Bh3 {[%clk 0:02:10]}  d4 {[%clk 0:00:42]} 21. exd4 {[%clk 0:01:40]}  e4 {[%clk 0:00:43]} 22. Ne5 {[%clk 0:00:58]}  Nxe5 {[%clk 0:00:42]} 23. dxe5 {[%clk 0:00:59]}  Bxh3 {[%clk 0:00:42]} 24. gxh3 {[%clk 0:01:00]}  Rxe5 {[%clk 0:00:18]} 25. Bxe5 {[%clk 0:01:00]}  Qxe5 {[%clk 0:00:19]} 26. Qd2 {[%clk 0:00:59]}  Kg7 {[%clk 0:00:18]} 27. Qe3 {[%clk 0:00:55]}  Qb2 {[%clk 0:00:15]} 28. Rd4 {[%clk 0:00:37]}  h5 {[%clk 0:00:14]} 29. Kg2 {[%clk 0:00:36]}  h4 {[%clk 0:00:12]} 30. Rxe4 {[%clk 0:00:28]}  Nxe4 {[%clk 0:00:10]} 31. Qxe4 {[%clk 0:00:29]}  g5 {[%clk 0:00:09]} 32. Qxb7 {[%clk 0:00:26]}  Kg6 {[%clk 0:00:09]} 33. Qe4+ {[%clk 0:00:23]}  f5 {[%clk 0:00:09]} 34. Qe6+ {[%clk 0:00:23]}  Kg7 {[%clk 0:00:06]} 35. Qxf5 {[%clk 0:00:15]}  Qxb4 {[%clk 0:00:06]} 36. Qxg5+ {[%clk 0:00:15]}  Kf7 {[%clk 0:00:06]} 37. Qf5+ {[%clk 0:00:11]}  Kg7 {[%clk 0:00:07]} 38. Qg4+ {[%clk 0:00:11]} 1-0


[Site "https://www.chess.com"]

[Event "Titled Tuesday Blitz March 15 Early 2022"]
[White "Borodavkin, Anatoly"]
[Black "Oganisian, Roman"]
[WhiteFideId "14150662"]
[BlackFideId "4153006"]
[WhiteElo "1845"]
[BlackElo "2204"]
[Result "0-1"]
[Round "02"]
[TimeControl "180+1"]
[Date "2022.03.15"]
[WhiteClock "0:01:12"]
[BlackClock "0:00:49"]

1. e4 {[%clk 0:02:58]}  e6 {[%clk 0:03:00]} 2. d4 {[%clk 0:02:58]}  d5 {[%clk 0:03:00]} 3. Nc3 {[%clk 0:02:55]}  Nf6 {[%clk 0:02:59]} 4. exd5 {[%clk 0:02:53]}  exd5 {[%clk 0:02:59]} 5. Bd3 {[%clk 0:02:54]}  Nc6 {[%clk 0:02:58]} 6. Nge2 {[%clk 0:02:52]}  Bg4 {[%clk 0:02:57]} 7. f3 {[%clk 0:02:51]}  Bh5 {[%clk 0:02:57]} 8. Nf4 {[%clk 0:02:49]}  Nxd4 {[%clk 0:02:37]} 9. Nxh5 {[%clk 0:02:44]}  Nxh5 {[%clk 0:02:37]} 10. Bxh7 {[%clk 0:02:39]}  Qh4+ {[%clk 0:02:32]} 11. Kf1 {[%clk 0:02:28]}  Ng3+ {[%clk 0:02:28]} 12. Kg1 {[%clk 0:02:11]}  Nxh1 {[%clk 0:02:26]} 13. Kxh1 {[%clk 0:02:12]}  Rxh7 {[%clk 0:02:25]} 14. h3 {[%clk 0:02:12]}  O-O-O {[%clk 0:02:21]} 15. Be3 {[%clk 0:02:11]}  Nf5 {[%clk 0:02:18]} 16. Bxa7 {[%clk 0:02:05]}  Bd6 {[%clk 0:01:59]} 17. Qd3 {[%clk 0:02:00]}  Qf4 {[%clk 0:01:48]} 18. Kg1 {[%clk 0:01:57]}  Qh2+ {[%clk 0:01:29]} 19. Kf2 {[%clk 0:01:55]}  Bg3+ {[%clk 0:01:28]} 20. Kf1 {[%clk 0:01:54]}  g6 {[%clk 0:01:15]} 21. Nxd5 {[%clk 0:01:49]}  Re8 {[%clk 0:01:10]} 22. Ne3 {[%clk 0:01:18]}  Qh1+ {[%clk 0:01:03]} 23. Ke2 {[%clk 0:01:18]}  Qxg2+ {[%clk 0:01:01]} 24. Kd1 {[%clk 0:01:15]}  Qxf3+ {[%clk 0:00:59]} 25. Kd2 {[%clk 0:01:15]}  Rd8 {[%clk 0:00:52]} 26. Kc3 {[%clk 0:01:12]}  Rxd3+ {[%clk 0:00:51]} 27. cxd3 {[%clk 0:01:12]}  Nxe3 {[%clk 0:00:49]} 0-1


[Site "https://www.chess.com"]

[Event "Titled Tuesday Blitz March 15 Early 2022"]
[White "Brunner, Nicolas"]
[Black "P., Komal Kishore"]
[WhiteFideId "620246"]
[BlackFideId "5016703"]
[WhiteElo "2372"]
[BlackElo "2113"]
[Result "1-0"]
[Round "02"]
[TimeControl "180+1"]
[Date "2022.03.15"]
[WhiteClock "0:00:36"]
[BlackClock "0:00:03"]

1. d4 {[%clk 0:03:00]}  c6 {[%clk 0:03:00]} 2. c4 {[%clk 0:02:58]}  d5 {[%clk 0:03:01]} 3. Nf3 {[%clk 0:02:58]}  Nf6 {[%clk 0:03:01]} 4. e3 {[%clk 0:02:56]}  Bg4 {[%clk 0:02:58]} 5. Qb3 {[%clk 0:02:54]}  Qb6 {[%clk 0:02:55]} 6. Nc3 {[%clk 0:02:52]}  Bxf3 {[%clk 0:02:52]} 7. gxf3 {[%clk 0:02:51]}  Qxb3 {[%clk 0:02:52]} 8. axb3 {[%clk 0:02:51]}  e6 {[%clk 0:02:53]} 9. e4 {[%clk 0:02:51]}  Be7 {[%clk 0:02:51]} 10. Rg1 {[%clk 0:02:30]}  O-O {[%clk 0:02:47]} 11. Bh6 {[%clk 0:02:27]}  Ne8 {[%clk 0:02:27]} 12. cxd5 {[%clk 0:02:26]}  exd5 {[%clk 0:02:19]} 13. exd5 {[%clk 0:02:26]}  Bf6 {[%clk 0:02:18]} 14. O-O-O {[%clk 0:02:16]}  Kh8 {[%clk 0:02:17]} 15. Bg5 {[%clk 0:02:13]}  Bxg5+ {[%clk 0:02:13]} 16. Rxg5 {[%clk 0:02:13]}  Nf6 {[%clk 0:02:12]} 17. Bc4 {[%clk 0:02:04]}  cxd5 {[%clk 0:02:03]} 18. Nxd5 {[%clk 0:02:02]}  Nxd5 {[%clk 0:01:59]} 19. Bxd5 {[%clk 0:02:02]}  Nc6 {[%clk 0:01:58]} 20. Bxc6 {[%clk 0:02:00]}  Rac8 {[%clk 0:01:30]} 21. Rc5 {[%clk 0:02:00]}  Rxc6 {[%clk 0:01:26]} 22. Rxc6 {[%clk 0:01:58]}  bxc6 {[%clk 0:01:26]} 23. Re1 {[%clk 0:01:54]}  g6 {[%clk 0:01:09]} 24. Kc2 {[%clk 0:01:53]}  Kg7 {[%clk 0:01:05]} 25. Re7 {[%clk 0:01:51]}  Ra8 {[%clk 0:00:58]} 26. Rc7 {[%clk 0:01:50]}  Re8 {[%clk 0:00:58]} 27. Kd3 {[%clk 0:01:38]}  Rb8 {[%clk 0:00:53]} 28. Kc4 {[%clk 0:01:36]}  Re8 {[%clk 0:00:51]} 29. Rxc6 {[%clk 0:01:27]}  Re2 {[%clk 0:00:50]} 30. d5 {[%clk 0:01:25]}  Kf8 {[%clk 0:00:41]} 31. d6 {[%clk 0:01:23]}  Ke8 {[%clk 0:00:39]} 32. Rc7 {[%clk 0:01:18]}  Rxf2 {[%clk 0:00:32]} 33. Re7+ {[%clk 0:01:17]}  Kd8 {[%clk 0:00:28]} 34. Rxf7 {[%clk 0:01:17]}  Rxh2 {[%clk 0:00:28]} 35. Rxa7 {[%clk 0:01:11]}  h5 {[%clk 0:00:21]} 36. Rg7 {[%clk 0:01:10]}  Rg2 {[%clk 0:00:20]} 37. b4 {[%clk 0:01:00]}  h4 {[%clk 0:00:19]} 38. b5 {[%clk 0:00:54]}  h3 {[%clk 0:00:15]} 39. Rh7 {[%clk 0:00:54]}  h2 {[%clk 0:00:15]} 40. b4 {[%clk 0:00:49]}  Rc2+ {[%clk 0:00:09]} 41. Kd5 {[%clk 0:00:47]}  g5 {[%clk 0:00:08]} 42. b6 {[%clk 0:00:44]}  Kc8 {[%clk 0:00:06]} 43. d7+ {[%clk 0:00:36]}  Kd8 {[%clk 0:00:03]} 44. b7 {[%clk 0:00:36]} 1-0


[Site "https://www.chess.com"]

[Event "Titled Tuesday Blitz March 15 Early 2022"]
[White "Budrewicz, Krzysztof"]
[Black "Xie, Bryan"]
[WhiteFideId "1127950"]
[BlackFideId "30941296"]
[WhiteElo "2248"]
[BlackElo "1899"]
[Result "0-1"]
[Round "02"]
[TimeControl "180+1"]
[Date "2022.03.15"]
[WhiteClock "0:01:07"]
[BlackClock "0:00:37"]

1. d4 {[%clk 0:03:00]}  Nf6 {[%clk 0:02:59]} 2. c4 {[%clk 0:03:01]}  e6 {[%clk 0:02:59]} 3. Nf3 {[%clk 0:03:01]}  b6 {[%clk 0:02:59]} 4. g3 {[%clk 0:03:01]}  Bb7 {[%clk 0:03:00]} 5. Bg2 {[%clk 0:03:01]}  Be7 {[%clk 0:03:00]} 6. O-O {[%clk 0:02:46]}  O-O {[%clk 0:02:57]} 7. d5 {[%clk 0:02:44]}  exd5 {[%clk 0:02:56]} 8. Nh4 {[%clk 0:02:41]}  c6 {[%clk 0:02:57]} 9. cxd5 {[%clk 0:02:38]}  Nxd5 {[%clk 0:02:58]} 10. Nf5 {[%clk 0:02:38]}  Bf6 {[%clk 0:02:52]} 11. e4 {[%clk 0:02:37]}  Nc7 {[%clk 0:02:52]} 12. Nc3 {[%clk 0:02:36]}  d5 {[%clk 0:02:50]} 13. Bf4 {[%clk 0:02:35]}  d4 {[%clk 0:02:50]} 14. Ne2 {[%clk 0:02:29]}  c5 {[%clk 0:02:50]} 15. Nd6 {[%clk 0:02:10]}  Bc6 {[%clk 0:02:40]} 16. Re1 {[%clk 0:02:08]}  g5 {[%clk 0:02:31]} 17. e5 {[%clk 0:01:23]}  gxf4 {[%clk 0:01:51]} 18. gxf4 {[%clk 0:01:23]}  Bxg2 {[%clk 0:01:31]} 19. Kxg2 {[%clk 0:01:23]}  Kh8 {[%clk 0:01:24]} 20. Ng3 {[%clk 0:01:21]}  Ne6 {[%clk 0:01:05]} 21. Qf3 {[%clk 0:01:21]}  Na6 {[%clk 0:00:51]} 22. Nb7 {[%clk 0:01:10]}  Qd5 {[%clk 0:00:37]} 23. exf6 {[%clk 0:01:07]}  Nxf4+ {[%clk 0:00:37]} 0-1


[Site "https://www.chess.com"]

[Event "Titled Tuesday Blitz March 15 Early 2022"]
[White "Chen, Qi b"]
[Black "Gubanov, Oleg"]
[WhiteFideId "8614733"]
[BlackFideId "14115115"]
[WhiteElo "2432"]
[BlackElo "2080"]
[Result "1-0"]
[Round "02"]
[TimeControl "180+1"]
[Date "2022.03.15"]
[WhiteClock "0:00:40"]
[BlackClock "0:00:23"]

1. Nf3 {[%clk 0:02:54]}  Nf6 {[%clk 0:02:57]} 2. g3 {[%clk 0:02:53]}  b5 {[%clk 0:02:56]} 3. Bg2 {[%clk 0:02:53]}  Bb7 {[%clk 0:02:56]} 4. O-O {[%clk 0:02:54]}  e6 {[%clk 0:02:56]} 5. d3 {[%clk 0:02:54]}  d5 {[%clk 0:02:54]} 6. a4 {[%clk 0:02:52]}  a6 {[%clk 0:02:53]} 7. Nbd2 {[%clk 0:02:48]}  Be7 {[%clk 0:02:53]} 8. Nb3 {[%clk 0:02:48]}  c5 {[%clk 0:02:45]} 9. c3 {[%clk 0:02:28]}  Nbd7 {[%clk 0:02:41]} 10. Re1 {[%clk 0:02:26]}  O-O {[%clk 0:02:38]} 11. Qc2 {[%clk 0:02:22]}  c4 {[%clk 0:02:11]} 12. Nbd4 {[%clk 0:02:15]}  Qb6 {[%clk 0:02:04]} 13. axb5 {[%clk 0:02:03]}  axb5 {[%clk 0:02:04]} 14. Rxa8 {[%clk 0:02:03]}  Bxa8 {[%clk 0:02:00]} 15. Be3 {[%clk 0:02:02]}  Bc5 {[%clk 0:01:59]} 16. b4 {[%clk 0:02:01]}  cxb3 {[%clk 0:01:59]} 17. Qxb3 {[%clk 0:02:00]}  Ng4 {[%clk 0:01:54]} 18. Bh3 {[%clk 0:01:36]}  Nxe3 {[%clk 0:01:28]} 19. fxe3 {[%clk 0:01:37]}  b4 {[%clk 0:01:25]} 20. cxb4 {[%clk 0:01:22]}  Qxb4 {[%clk 0:00:41]} 21. Qxb4 {[%clk 0:01:21]}  Bxb4 {[%clk 0:00:42]} 22. Rb1 {[%clk 0:01:21]}  Bc5 {[%clk 0:00:42]} 23. Kf2 {[%clk 0:01:16]}  Nf6 {[%clk 0:00:32]} 24. Rb5 {[%clk 0:00:57]}  Bd6 {[%clk 0:00:28]} 25. Rb6 {[%clk 0:00:52]}  Bc7 {[%clk 0:00:26]} 26. Ra6 {[%clk 0:00:47]}  h6 {[%clk 0:00:23]} 27. Nb5 {[%clk 0:00:40]} 1-0


[Site "https://www.chess.com"]

[Event "Titled Tuesday Blitz March 15 Early 2022"]
[White "Coto Mederos, Michel"]
[Black "Fernandez, Daniel Howard"]
[WhiteFideId "3508528"]
[BlackFideId "5801605"]
[WhiteElo "2427"]
[BlackElo "2466"]
[Result "0-1"]
[Round "02"]
[TimeControl "180+1"]
[Date "2022.03.15"]
[WhiteClock "0:00:04"]
[BlackClock "0:00:17"]

1. c4 {[%clk 0:02:54]}  c5 {[%clk 0:02:58]} 2. Nf3 {[%clk 0:02:53]}  Nc6 {[%clk 0:02:59]} 3. Nc3 {[%clk 0:02:53]}  Nf6 {[%clk 0:02:58]} 4. e3 {[%clk 0:02:53]}  e5 {[%clk 0:02:58]} 5. d4 {[%clk 0:02:46]}  cxd4 {[%clk 0:02:59]} 6. exd4 {[%clk 0:02:47]}  e4 {[%clk 0:02:59]} 7. Ng5 {[%clk 0:02:34]}  Bb4 {[%clk 0:02:55]} 8. Be2 {[%clk 0:02:17]}  d5 {[%clk 0:02:52]} 9. O-O {[%clk 0:02:04]}  Bxc3 {[%clk 0:02:48]} 10. bxc3 {[%clk 0:02:01]}  h6 {[%clk 0:02:48]} 11. Nh3 {[%clk 0:01:43]}  Bxh3 {[%clk 0:02:48]} 12. gxh3 {[%clk 0:01:44]}  O-O {[%clk 0:02:40]} 13. Kh1 {[%clk 0:01:42]}  Rc8 {[%clk 0:02:25]} 14. Rg1 {[%clk 0:01:35]}  Kh7 {[%clk 0:02:25]} 15. c5 {[%clk 0:01:16]}  b6 {[%clk 0:02:19]} 16. Be3 {[%clk 0:01:16]}  Ne7 {[%clk 0:02:11]} 17. Bg4 {[%clk 0:01:08]}  Nxg4 {[%clk 0:02:11]} 18. Qxg4 {[%clk 0:01:07]}  g6 {[%clk 0:02:10]} 19. h4 {[%clk 0:00:47]}  Nf5 {[%clk 0:01:32]} 20. h5 {[%clk 0:00:41]}  Qf6 {[%clk 0:01:33]} 21. Rab1 {[%clk 0:00:34]}  Rc6 {[%clk 0:01:29]} 22. Rb5 {[%clk 0:00:28]}  bxc5 {[%clk 0:01:26]} 23. dxc5 {[%clk 0:00:20]}  g5 {[%clk 0:00:37]} 24. Rd1 {[%clk 0:00:10]}  Rd8 {[%clk 0:00:21]} 25. c4 {[%clk 0:00:10]}  d4 {[%clk 0:00:17]} 26. Qxe4 {[%clk 0:00:10]}  Re6 {[%clk 0:00:17]} 27. Qc2 {[%clk 0:00:08]}  dxe3 {[%clk 0:00:17]} 28. Rxd8 {[%clk 0:00:09]}  e2 {[%clk 0:00:17]} 29. Rb1 {[%clk 0:00:05]}  e1=Q+ {[%clk 0:00:17]} 30. Rxe1 {[%clk 0:00:06]}  Rxe1+ {[%clk 0:00:18]} 31. Kg2 {[%clk 0:00:05]}  Qxd8 {[%clk 0:00:18]} 32. Qxf5+ {[%clk 0:00:04]}  Kg7 {[%clk 0:00:18]} 33. Qf3 {[%clk 0:00:03]}  Re6 {[%clk 0:00:18]} 34. Qc3+ {[%clk 0:00:03]}  Qf6 {[%clk 0:00:18]} 35. Qd3 {[%clk 0:00:04]}  Qe5 {[%clk 0:00:17]} 36. Qd2 {[%clk 0:00:03]}  Qxc5 {[%clk 0:00:16]} 37. Qc3+ {[%clk 0:00:03]}  Qe5 {[%clk 0:00:17]} 38. Qd3 {[%clk 0:00:03]}  Qe4+ {[%clk 0:00:17]} 39. Qxe4 {[%clk 0:00:04]}  Rxe4 {[%clk 0:00:17]} 0-1


[Site "https://www.chess.com"]

[Event "Titled Tuesday Blitz March 15 Early 2022"]
[White "Deac, Bogdan-Daniel"]
[Black "Hambleton, Aman"]
[WhiteFideId "1226380"]
[BlackFideId "2606577"]
[WhiteElo "2646"]
[BlackElo "2552"]
[Result "1-0"]
[Round "02"]
[TimeControl "180+1"]
[Date "2022.03.15"]
[WhiteClock "0:00:49"]
[BlackClock "0:00:01"]

1. d4 {[%clk 0:02:46]}  Nf6 {[%clk 0:02:56]} 2. c4 {[%clk 0:02:46]}  e6 {[%clk 0:02:53]} 3. g3 {[%clk 0:02:45]}  c5 {[%clk 0:02:52]} 4. Nf3 {[%clk 0:02:45]}  cxd4 {[%clk 0:02:37]} 5. Nxd4 {[%clk 0:02:46]}  a6 {[%clk 0:02:37]} 6. Bg2 {[%clk 0:02:45]}  Be7 {[%clk 0:02:36]} 7. O-O {[%clk 0:02:45]}  Qc7 {[%clk 0:02:35]} 8. b3 {[%clk 0:02:44]}  O-O {[%clk 0:02:35]} 9. Bb2 {[%clk 0:02:42]}  d6 {[%clk 0:02:27]} 10. Nc3 {[%clk 0:02:42]}  Ra7 {[%clk 0:01:59]} 11. Rc1 {[%clk 0:01:52]}  b6 {[%clk 0:01:54]} 12. e4 {[%clk 0:01:45]}  Nbd7 {[%clk 0:01:41]} 13. g4 {[%clk 0:01:34]}  h6 {[%clk 0:01:04]} 14. f4 {[%clk 0:01:28]}  Bb7 {[%clk 0:00:36]} 15. g5 {[%clk 0:01:25]}  hxg5 {[%clk 0:00:37]} 16. fxg5 {[%clk 0:01:25]}  Ne8 {[%clk 0:00:30]} 17. g6 {[%clk 0:01:21]}  Nef6 {[%clk 0:00:24]} 18. gxf7+ {[%clk 0:01:19]}  Kxf7 {[%clk 0:00:25]} 19. Qh5+ {[%clk 0:01:17]}  Kg8 {[%clk 0:00:07]} 20. Qh3 {[%clk 0:01:13]}  Rf7 {[%clk 0:00:02]} 21. Nxe6 {[%clk 0:01:12]}  Qc8 {[%clk 0:00:02]} 22. Ng5 {[%clk 0:01:09]}  Ne5 {[%clk 0:00:01]} 23. Qxc8+ {[%clk 0:01:04]}  Bxc8 {[%clk 0:00:02]} 24. Nxf7 {[%clk 0:01:04]}  Kxf7 {[%clk 0:00:03]} 25. Nd5 {[%clk 0:01:01]}  Nd3 {[%clk 0:00:03]} 26. Bxf6 {[%clk 0:00:57]}  Bxf6 {[%clk 0:00:01]} 27. Rcd1 {[%clk 0:00:56]}  Nc5 {[%clk 0:00:01]} 28. Nxf6 {[%clk 0:00:56]}  gxf6 {[%clk 0:00:02]} 29. Rxd6 {[%clk 0:00:56]}  Be6 {[%clk 0:00:01]} 30. e5 {[%clk 0:00:53]}  Ke7 {[%clk 0:00:01]} 31. Rxf6 {[%clk 0:00:50]}  a5 {[%clk 0:00:01]} 32. Bd5 {[%clk 0:00:49]} 1-0


[Site "https://www.chess.com"]

[Event "Titled Tuesday Blitz March 15 Early 2022"]
[White "Dubov, Daniil"]
[Black "Nagy, Gabor"]
[WhiteFideId "24126055"]
[BlackFideId "737119"]
[WhiteElo "2791"]
[BlackElo "2534"]
[Result "1-0"]
[Round "02"]
[TimeControl "180+1"]
[Date "2022.03.15"]
[WhiteClock "0:01:23"]
[BlackClock "0:01:34"]

1. d4 {[%clk 0:02:53]}  Nf6 {[%clk 0:02:59]} 2. Nf3 {[%clk 0:02:53]}  b6 {[%clk 0:02:58]} 3. c4 {[%clk 0:02:51]}  e6 {[%clk 0:02:58]} 4. g3 {[%clk 0:02:50]}  Bb7 {[%clk 0:02:58]} 5. Bg2 {[%clk 0:02:50]}  Bb4+ {[%clk 0:02:58]} 6. Nbd2 {[%clk 0:02:48]}  O-O {[%clk 0:02:57]} 7. O-O {[%clk 0:02:47]}  a5 {[%clk 0:02:56]} 8. Qc2 {[%clk 0:02:44]}  Bxd2 {[%clk 0:02:55]} 9. Bxd2 {[%clk 0:02:43]}  Be4 {[%clk 0:02:54]} 10. Qd1 {[%clk 0:02:41]}  d6 {[%clk 0:02:53]} 11. Bc3 {[%clk 0:02:39]}  Nbd7 {[%clk 0:02:51]} 12. Re1 {[%clk 0:02:38]}  Qe7 {[%clk 0:02:50]} 13. Bf1 {[%clk 0:02:36]}  e5 {[%clk 0:02:39]} 14. Nd2 {[%clk 0:02:32]}  exd4 {[%clk 0:02:36]} 15. Bxd4 {[%clk 0:02:31]}  Bb7 {[%clk 0:02:36]} 16. e4 {[%clk 0:02:29]}  Rfe8 {[%clk 0:02:33]} 17. f3 {[%clk 0:02:28]}  Rad8 {[%clk 0:02:26]} 18. Rc1 {[%clk 0:02:24]}  h6 {[%clk 0:02:24]} 19. Nb1 {[%clk 0:02:23]}  Ne5 {[%clk 0:02:23]} 20. Nc3 {[%clk 0:02:21]}  Qf8 {[%clk 0:02:09]} 21. b3 {[%clk 0:02:18]}  Nfd7 {[%clk 0:02:04]} 22. Nd5 {[%clk 0:02:10]}  Bxd5 {[%clk 0:02:01]} 23. cxd5 {[%clk 0:02:05]}  Nc5 {[%clk 0:02:01]} 24. a3 {[%clk 0:02:02]}  Re7 {[%clk 0:01:53]} 25. b4 {[%clk 0:02:00]}  axb4 {[%clk 0:01:54]} 26. axb4 {[%clk 0:01:59]}  Nb7 {[%clk 0:01:45]} 27. f4 {[%clk 0:01:53]}  Nd7 {[%clk 0:01:44]} 28. Rxc7 {[%clk 0:01:48]}  Nf6 {[%clk 0:01:43]} 29. Rxe7 {[%clk 0:01:44]}  Qxe7 {[%clk 0:01:44]} 30. Bxb6 {[%clk 0:01:41]}  Rb8 {[%clk 0:01:41]} 31. Bd4 {[%clk 0:01:30]}  Nxe4 {[%clk 0:01:40]} 32. Qg4 {[%clk 0:01:25]}  g6 {[%clk 0:01:34]} 33. Bd3 {[%clk 0:01:23]} 1-0


[Site "https://www.chess.com"]

[Event "Titled Tuesday Blitz March 15 Early 2022"]
[White "Farmani Anosheh, Armin"]
[Black "Wong, Yinn Long"]
[WhiteFideId "24613240"]
[BlackFideId "5707684"]
[WhiteElo "2289"]
[BlackElo "2055"]
[Result "0-1"]
[Round "02"]
[TimeControl "180+1"]
[Date "2022.03.15"]
[WhiteClock "0:00:12"]
[BlackClock "0:00:12"]

1. c4 {[%clk 0:02:54]}  Nf6 {[%clk 0:02:59]} 2. d4 {[%clk 0:02:54]}  e6 {[%clk 0:02:59]} 3. Nf3 {[%clk 0:02:54]}  b6 {[%clk 0:02:59]} 4. g3 {[%clk 0:02:55]}  Bb7 {[%clk 0:02:59]} 5. Bg2 {[%clk 0:02:55]}  g6 {[%clk 0:03:00]} 6. O-O {[%clk 0:02:55]}  Bg7 {[%clk 0:03:00]} 7. Nc3 {[%clk 0:02:46]}  Ne4 {[%clk 0:03:00]} 8. Nxe4 {[%clk 0:02:26]}  Bxe4 {[%clk 0:03:01]} 9. b3 {[%clk 0:02:16]}  O-O {[%clk 0:02:55]} 10. Bb2 {[%clk 0:02:17]}  d6 {[%clk 0:02:52]} 11. Qd2 {[%clk 0:01:46]}  Nd7 {[%clk 0:02:50]} 12. Ne1 {[%clk 0:01:43]}  Bxg2 {[%clk 0:02:48]} 13. Nxg2 {[%clk 0:01:44]}  Qe7 {[%clk 0:02:46]} 14. e4 {[%clk 0:01:44]}  e5 {[%clk 0:02:46]} 15. Rae1 {[%clk 0:01:31]}  Rae8 {[%clk 0:02:28]} 16. f4 {[%clk 0:01:29]}  exd4 {[%clk 0:02:17]} 17. Bxd4 {[%clk 0:01:29]}  Bxd4+ {[%clk 0:02:15]} 18. Qxd4 {[%clk 0:01:30]}  Qf6 {[%clk 0:02:16]} 19. e5 {[%clk 0:01:14]}  Qg7 {[%clk 0:02:16]} 20. Qd2 {[%clk 0:01:13]}  Re6 {[%clk 0:02:10]} 21. Ne3 {[%clk 0:00:59]}  f6 {[%clk 0:01:11]} 22. Nd5 {[%clk 0:00:42]}  fxe5 {[%clk 0:00:56]} 23. Nxc7 {[%clk 0:00:42]}  Ref6 {[%clk 0:00:56]} 24. Qd5+ {[%clk 0:00:39]}  Qf7 {[%clk 0:00:56]} 25. Qxf7+ {[%clk 0:00:26]}  R8xf7 {[%clk 0:00:57]} 26. Nd5 {[%clk 0:00:24]}  Re6 {[%clk 0:00:53]} 27. Rf2 {[%clk 0:00:20]}  Kg7 {[%clk 0:00:48]} 28. Rfe2 {[%clk 0:00:19]}  Nc5 {[%clk 0:00:44]} 29. fxe5 {[%clk 0:00:19]}  Nd3 {[%clk 0:00:45]} 30. Rf1 {[%clk 0:00:18]}  Nxe5 {[%clk 0:00:29]} 31. Rxf7+ {[%clk 0:00:17]}  Kxf7 {[%clk 0:00:30]} 32. Kg2 {[%clk 0:00:18]}  Re8 {[%clk 0:00:28]} 33. Nc7 {[%clk 0:00:18]}  Rc8 {[%clk 0:00:27]} 34. Nb5 {[%clk 0:00:18]}  Ke6 {[%clk 0:00:18]} 35. Nxa7 {[%clk 0:00:18]}  Rf8 {[%clk 0:00:19]} 36. Nb5 {[%clk 0:00:19]}  Kd7 {[%clk 0:00:19]} 37. Nd4 {[%clk 0:00:19]}  Rf6 {[%clk 0:00:17]} 38. h3 {[%clk 0:00:18]}  Rf8 {[%clk 0:00:17]} 39. Rd2 {[%clk 0:00:18]}  Ke7 {[%clk 0:00:16]} 40. Nb5 {[%clk 0:00:18]}  Rf6 {[%clk 0:00:16]} 41. Re2 {[%clk 0:00:17]}  Kd7 {[%clk 0:00:15]} 42. Nc3 {[%clk 0:00:18]}  Rf8 {[%clk 0:00:14]} 43. Nd5 {[%clk 0:00:18]}  Kc6 {[%clk 0:00:14]} 44. a4 {[%clk 0:00:17]}  h5 {[%clk 0:00:13]} 45. Ra2 {[%clk 0:00:17]}  Nd3 {[%clk 0:00:12]} 46. Rd2 {[%clk 0:00:13]}  Ne1+ {[%clk 0:00:12]} 47. Kg1 {[%clk 0:00:12]}  Nf3+ {[%clk 0:00:12]} 0-1


[Site "https://www.chess.com"]